[Event "45th FIDE Womens Olympiad 2024"]
[Site "Budapest"]
[Date "2024.09.14"]
[Round "4.7"]
[White "Guindy, Esmat Susanne"]
[Black "Papp, Petra"]
[Result "1/2-1/2"]
[ECO "A37"]
[WhiteElo "2015"]
[BlackElo "2259"]
[Annotator "ChessBase"]
[PlyCount "73"]
[EventDate "2024.09.05"]
[EventType "team-tourn"]
[EventCountry "HUN"]
[SourceTitle "playchess.com"]
[Source "ChessBase"]
[SourceQuality "1"]
[WhiteTeam "Denmark"]
[BlackTeam "Hungary"]
[WhiteTeamCountry "DEN"]
[BlackTeamCountry "HUN"]
[TimeControl "40/5400+30:1800+30"]

1. Nf3 {[%emt 0:00:04]} c5 {[%emt 0:01:58]} 2. c4 {[%emt 0:00:11]} Nc6 {[%emt 0:01:03]} 3. Nc3 {[%emt 0:01:45]} g6 {[%emt 0:01:13]} 4. g3 {[%emt 0:00:12]} Bg7 {[%emt 0:00:21]} 5. Bg2 {[%emt 0:00:08]} d6 {[%emt 0:02:02]} 6. O-O {[%emt 0:02:41]} e6 {[%emt 0:00:13]} 7. e3 {[%emt 0:04:38]} Nge7 {[%emt 0:00:49]} 8. d4 {[%emt 0:04:13]} O-O {[%emt 0:03:26]} 9. dxc5 {[%emt 0:14:00]} dxc5 {[%emt 0:00:09]} 10. Na4 {[%emt 0:07:29]} b6 {[%emt 0:07:59]} 11. Bd2 {[%emt 0:02:56]} Bb7 {[%emt 0:06:44]} 12. Bc3 {[%emt 0:00:55]} Qc7 {[%emt 0:05:58]} 13. Bxg7 {[%emt 0:00:44]} Kxg7 {[%emt 0:00:05]} 14. Qe2 {[%emt 0:03:53]} Rad8 {[%emt 0:04:26]} 15. Rfd1 {[%emt 0:00:39]} f6 {[%emt 0:16:09]} 16. Nc3 {[%emt 0:06:16]} Ba6 {[%emt 0:02:47]} 17. b3 {[%emt 0:03:09]} Nf5 {[%emt 0:02:17]} 18. Rxd8 {[%emt 0:04:40]} Rxd8 {[%emt 0:00:46]} 19. Rd1 {[%emt 0:00:11]} h6 {[%emt 0:13:09]} 20. h4 {[%emt 0:00:48]} Rxd1+ {[%emt 0:01:06]} 21. Qxd1 {[%emt 0:01:38]} Qd6 {[%emt 0:00:38]} 22. Qxd6 {[%emt 0:09:34]} Nxd6 {[%emt 0:00:07]} 23. Nd2 {[%emt 0:01:12]} Ne5 {[%emt 0:05:12]} 24. Nde4 {[%emt 0:03:38]} Nef7 {[%emt 0:02:01]} 25. Nxd6 {[%emt 0:01:22]} Nxd6 {[%emt 0:00:03]} 26. Bc6 {[%emt 0:00:59]} Nf7 {[%emt 0:02:18]} 27. Kf1 {[%emt 0:02:52]} Kf8 {[%emt 0:00:58]} 28. Ke2 {[%emt 0:01:59]} Ke7 {[%emt 0:02:34]} 29. f4 {[%emt 0:00:55]} Nd8 {[%emt 0:05:14]} 30. Be4 {[%emt 0:03:28]} f5 {[%emt 0:00:11]} 31. Bf3 {[%emt 0:00:16]} h5 {[%emt 0:04:11]} 32. e4 {[%emt 0:06:28]} Bb7 {[%emt 0:02:32]} 33. e5 {[%emt 0:02:41]} Bc8 {[%emt 0:05:46]} 34. Nb5 {[%emt 0:03:18]} a6 {[%emt 0:00:23]} 35. Nd6 {[%emt 0:00:39]} Bd7 {[%emt 0:00:35]} 36. a3 {[%emt 0:03:24]} Nf7 {[%emt 0:00:30]} 37. Nxf7 {[%emt 0:01:38]} 1/2-1/2

[Event "45th FIDE Womens Olympiad 2024"]
[Site "Budapest"]
[Date "2024.09.14"]
[Round "4.7"]
[White "Beekhy, Aamirah"]
[Black "Reifer-Belle, Chanon"]
[Result "0-1"]
[ECO "D00"]
[WhiteElo "1600"]
[BlackElo "1736"]
[PlyCount "80"]
[EventDate "2024.09.05"]
[EventType "team-tourn"]
[EventCountry "HUN"]
[WhiteTeam "Mauritius"]
[BlackTeam "Barbados"]
[WhiteTeamCountry "MRI"]
[BlackTeamCountry "BAR"]
[TimeControl "40/5400+30:1800+30"]

1. d4 d5 2. Bf4 Nf6 3. e3 c5 4. c3 Nc6 5. Nd2 Bf5 6. Ngf3 Qb6 7. Qb3 c4 8. Qxb6 axb6 9. Nh4 Bg6 10. Nxg6 hxg6 11. Bc7 b5 12. Be2 e6 13. Bf4 b4 14. e4 bxc3 15. bxc3 Ra3 16. e5 Nd7 17. Nb1 Ra5 18. O-O b5 19. Nd2 Nb6 20. Rfc1 Kd7 21. Bd1 Ba3 22. Rc2 Rha8 23. Nb1 Be7 24. Bc1 b4 25. cxb4 Nxb4 26. Rb2 Rxa2 27. Raxa2 Rxa2 28. Rxa2 Nxa2 29. Bd2 Nb4 30. Nc3 Kc6 31. f4 Nd3 32. Bc2 Nb4 33. Bd1 Kd7 34. Be1 Nc6 35. Kf2 Nxd4 36. Ke3 Nf5+ 37. Kf3 Bb4 38. Kf2 Kc6 39. Bc2 Bc5+ 40. Kf3 Nd4+ {0-} 0-1

[Event "45th FIDE Womens Olympiad 2024"]
[Site "Budapest"]
[Date "2024.09.14"]
[Round "4.8"]
[White "Lazarne Vajda, Szidonia"]
[Black "Durrfeld, Sofie Bech"]
[Result "1-0"]
[ECO "A43"]
[WhiteElo "2283"]
[BlackElo "1937"]
[Annotator "ChessBase"]
[PlyCount "97"]
[EventDate "2024.09.05"]
[EventType "team-tourn"]
[EventCountry "HUN"]
[SourceTitle "playchess.com"]
[Source "ChessBase"]
[SourceQuality "1"]
[WhiteTeam "Hungary"]
[BlackTeam "Denmark"]
[WhiteTeamCountry "HUN"]
[BlackTeamCountry "DEN"]
[TimeControl "40/5400+30:1800+30"]

1. d4 {[%emt 0:00:04]} Nf6 {[%emt 0:00:09]} 2. Nc3 {[%emt 0:00:22]} c5 {[%emt 0:00:58]} 3. d5 {[%emt 0:00:22]} g6 {[%emt 0:00:50]} 4. e4 {[%emt 0:00:21]} d6 {[%emt 0:00:48]} 5. Nf3 {[%emt 0:00:19]} Bg7 {[%emt 0:00:59]} 6. Bc4 {[%emt 0:00:15]} Bg4 {[%emt 0:01:42]} 7. h3 {[%emt 0:01:35]} Bxf3 {[%emt 0:00:18]} 8. Qxf3 {[%emt 0:00:05]} Nbd7 {[%emt 0:01:38]} 9. Be2 {[%emt 0:01:33]} a6 {[%emt 0:02:30]} 10. a4 {[%emt 0:00:37]} O-O {[%emt 0:02:16]} 11. O-O {[%emt 0:00:06]} Ne5 {[%emt 0:03:55]} 12. Qg3 {[%emt 0:02:28]} Qa5 {[%emt 0:06:41]} 13. f4 {[%emt 0:10:40]} Ned7 {[%emt 0:00:35]} 14. Ra3 {[%emt 0:04:54]} Qb4 {[%emt 0:03:16]} 15. Qf3 {[%emt 0:08:43]} c4 {[%emt 0:02:52]} 16. a5 {[%emt 0:04:36]} b5 {[%emt 0:06:35]} 17. axb6 {[%emt 0:05:12]} Qxb6+ {[%emt 0:00:54]} 18. Kh1 {[%emt 0:00:43]} Rfc8 {[%emt 0:02:58]} 19. Ra4 {[%emt 0:02:56]} a5 {[%emt 0:19:23]} 20. Rxc4 {[%emt 0:04:18]} Rxc4 {[%emt 0:05:53]} 21. Bxc4 {[%emt 0:00:05]} Qd4 {[%emt 0:01:50]} 22. Bd3 {[%emt 0:10:50]} a4 {[%emt 0:02:51]} 23. Nb5 {[%emt 0:04:18]} Qb4 {[%emt 0:01:59]} 24. c3 {[%emt 0:01:49]} Qa5 {[%emt 0:00:44]} 25. Be3 {[%emt 0:00:44]} Rb8 {[%emt 0:00:59]} 26. c4 {[%emt 0:02:50]} Ne8 {[%emt 0:06:02]} 27. Qf2 {[%emt 0:02:02]} Qb4 {[%emt 0:01:39]} 28. Rb1 {[%emt 0:03:23]} Nef6 {[%emt 0:05:55]} 29. Qc2 {[%emt 0:04:14]} Nc5 {[%emt 0:02:35]} 30. Bxc5 {[%emt 0:05:15]} Qxc5 {[%emt 0:00:29]} 31. Qd2 {[%emt 0:06:03]} h5 {[%emt 0:02:47]} 32. e5 {[%emt 0:03:13]} dxe5 {[%emt 0:01:53]} 33. fxe5 {[%emt 0:00:03]} Nd7 {[%emt 0:01:47]} 34. e6 {[%emt 0:01:40]} Ne5 {[%emt 0:00:33]} 35. exf7+ {[%emt 0:00:30]} Kxf7 {[%emt 0:00:20]} 36. Ra1 {[%emt 0:08:29]} Kg8 {[%emt 0:02:45]} 37. Rxa4 {[%emt 0:00:34]} Nxd3 {[%emt 0:01:10]} 38. Qxd3 {[%emt 0:00:05]} Rxb5 {[%emt 0:02:09]} 39. cxb5 {[%emt 0:00:45]} Qc1+ {[%emt 0:00:20]} 40. Kh2 {[%emt 0:00:04]} Be5+ {[%emt 0:00:14]} 41. g3 {[%emt 0:30:05]} Qxb2+ {[%emt 0:30:53]} 42. Kg1 {[%emt 0:00:26]} Qc1+ {[%emt 0:00:40]} 43. Kg2 {[%emt 0:00:41]} Kg7 {[%emt 0:01:33]} 44. Re4 {[%emt 0:00:44]} Bd6 {[%emt 0:02:41]} 45. Re6 {[%emt 0:02:24]} Qg5 {[%emt 0:00:44]} 46. h4 {[%emt 0:00:59]} Qg4 {[%emt 0:00:26]} 47. b6 {[%emt 0:00:11]} Kh6 {[%emt 0:01:25]} 48. b7 {[%emt 0:00:27]} Bb8 {[%emt 0:00:00]} 49. Qe3+ {[%emt 0:00:00]} 1-0

[Event "45th FIDE Womens Olympiad 2024"]
[Site "Budapest"]
[Date "2024.09.14"]
[Round "4.9"]
[White "Yao, Lan"]
[Black "Zhu, Jiner"]
[Result "0-1"]
[ECO "B32"]
[WhiteElo "2353"]
[BlackElo "2487"]
[Annotator "ChessBase"]
[PlyCount "102"]
[EventDate "2024.09.05"]
[EventType "team-tourn"]
[EventCountry "HUN"]
[SourceTitle "playchess.com"]
[Source "ChessBase"]
[SourceQuality "1"]
[WhiteTeam "England"]
[BlackTeam "China"]
[WhiteTeamCountry "ENG"]
[BlackTeamCountry "CHN"]
[TimeControl "40/5400+30:1800+30"]

1. e4 {[%emt 0:00:03]} c5 {[%emt 0:00:10]} 2. Nf3 {[%emt 0:00:05]} Nc6 {[%emt 0:00:08]} 3. d4 {[%emt 0:00:04]} cxd4 {[%emt 0:00:05]} 4. Nxd4 {[%emt 0:00:05]} e5 {[%emt 0:00:11]} 5. Nb5 {[%emt 0:00:10]} d6 {[%emt 0:00:16]} 6. c4 {[%emt 0:00:29]} Nf6 {[%emt 0:00:24]} 7. N1c3 {[%emt 0:00:12]} a6 {[%emt 0:00:42]} 8. Na3 {[%emt 0:00:06]} Be6 {[%emt 0:00:05]} 9. Be2 {[%emt 0:01:24]} Nd4 {[%emt 0:02:47]} 10. Be3 {[%emt 0:05:00]} Nxe2 {[%emt 0:01:04]} 11. Qxe2 {[%emt 0:00:07]} Rc8 {[%emt 0:01:12]} 12. f3 {[%emt 0:09:15]} Be7 {[%emt 0:10:59]} 13. O-O {[%emt 0:00:21]} O-O {[%emt 0:00:31]} 14. Nd5 {[%emt 0:05:42]} Nxd5 {[%emt 0:01:34]} 15. cxd5 {[%emt 0:01:45]} Bd7 {[%emt 0:00:09]} 16. Rfc1 {[%emt 0:18:23]} b5 {[%emt 0:02:23]} 17. Rxc8 {[%emt 0:05:26]} Qxc8 {[%emt 0:00:11]} 18. Rc1 {[%emt 0:00:30]} Qb7 {[%emt 0:00:54]} 19. Qd2 {[%emt 0:02:59]} f5 {[%emt 0:11:52]} 20. Nc2 {[%emt 0:02:19]} Bd8 {[%emt 0:09:06]} 21. Nb4 {[%emt 0:03:36]} fxe4 {[%emt 0:05:33]} 22. fxe4 {[%emt 0:00:10]} Ba5 {[%emt 0:00:45]} 23. a3 {[%emt 0:01:01]} Be8 {[%emt 0:01:46]} 24. Qd3 {[%emt 0:17:04]} Bb6 {[%emt 0:00:41]} 25. Re1 {[%emt 0:05:55]} a5 {[%emt 0:03:58]} 26. Na2 {[%emt 0:05:27]} Bg6 {[%emt 0:01:17]} 27. Nc3 {[%emt 0:01:47]} b4 {[%emt 0:00:52]} 28. axb4 {[%emt 0:01:10]} axb4 {[%emt 0:00:05]} 29. Ne2 {[%emt 0:02:11]} Qa7 {[%emt 0:01:03]} 30. Ng3 {[%emt 0:00:53]} h5 {[%emt 0:00:30]} 31. Nf1 {[%emt 0:03:35]} Rf4 {[%emt 0:00:48]} 32. Nd2 {[%emt 0:00:31]} Bxe3+ {[%emt 0:14:25]} 33. Qxe3 {[%emt 0:00:06]} Qa2 {[%emt 0:00:05]} 34. g3 {[%emt 0:02:20]} Rf8 {[%emt 0:00:15]} 35. b3 {[%emt 0:01:26]} Qc2 {[%emt 0:01:13]} 36. Nc4 {[%emt 0:03:06]} Ra8 {[%emt 0:01:20]} 37. Re2 {[%emt 0:02:07]} Ra1+ {[%emt 0:00:25]} 38. Kg2 {[%emt 0:00:07]} Qd1 {[%emt 0:00:19]} 39. Kh3 {[%emt 0:01:10]} Be8 {[%emt 0:06:42]} 40. Nxd6 {[%emt 0:01:31]} Qf1+ {[%emt 0:00:14]} 41. Rg2 {[%emt 0:10:31]} Bd7+ {[%emt 0:01:18]} 42. Nf5 {[%emt 0:06:00]} Ra2 {[%emt 0:00:10]} 43. Qg1 {[%emt 0:00:46]} Bxf5+ {[%emt 0:00:18]} 44. exf5 {[%emt 0:00:08]} Qxf5+ {[%emt 0:00:03]} 45. g4 {[%emt 0:00:06]} Qf3+ {[%emt 0:00:03]} 46. Rg3 {[%emt 0:01:20]} hxg4+ {[%emt 0:00:05]} 47. Kh4 {[%emt 0:00:18]} Qf4 {[%emt 0:00:10]} 48. d6 {[%emt 0:07:38]} Rxh2+ {[%emt 0:00:10]} 49. Qxh2 {[%emt 0:00:09]} Qh6+ {[%emt 0:00:03]} 50. Kxg4 {[%emt 0:00:08]} Qxh2 {[%emt 0:00:05]} 51. Rf3 {[%emt 0:01:48]} Qd2 {[%emt 0:00:40]} 0-1

[Event "45th FIDE Womens Olympiad 2024"]
[Site "Budapest"]
[Date "2024.09.14"]
[Round "4.9"]
[White "Mongeli, Sasha"]
[Black "Nomcebo, Sibisi"]
[Result "1-0"]
[ECO "E08"]
[WhiteElo "1819"]
[BlackElo "1570"]
[PlyCount "63"]
[EventDate "2024.09.05"]
[EventType "team-tourn"]
[EventCountry "HUN"]
[WhiteTeam "Kenya"]
[BlackTeam "Eswatini"]
[WhiteTeamCountry "KEN"]
[TimeControl "40/5400+30:1800+30"]

1. d4 d5 2. g3 c6 3. Bg2 e6 4. Nf3 Nf6 5. Nbd2 Be7 6. O-O O-O 7. c4 Nbd7 8. Qc2 b6 9. e4 dxe4 10. Nxe4 Nxe4 11. Qxe4 Bb7 12. Rd1 Rc8 13. b3 Ba8 14. Qe2 Bf6 15. Bb2 Qc7 16. Rd2 c5 17. Rad1 cxd4 18. Bxd4 Bxd4 19. Rxd4 Nc5 20. b4 Na6 21. a3 Nb8 22. Qd3 e5 23. Ng5 f5 24. Ne6 Qf7 25. Nxf8 exd4 26. Bxa8 Kxf8 27. Qxd4 Qc7 28. Bd5 Rd8 29. Qh4 g6 30. Qf6+ Ke8 31. Re1+ Kd7 32. Qe6# 1-0

[Event "45th FIDE Womens Olympiad 2024"]
[Site "Budapest"]
[Date "2024.09.14"]
[Round "4.10"]
[White "Song, Yuxin"]
[Black "Houska, Jovanka"]
[Result "1-0"]
[ECO "B15"]
[WhiteElo "2373"]
[BlackElo "2333"]
[Annotator "ChessBase"]
[PlyCount "43"]
[EventDate "2024.09.05"]
[EventType "team-tourn"]
[EventCountry "HUN"]
[SourceTitle "playchess.com"]
[Source "ChessBase"]
[SourceQuality "1"]
[WhiteTeam "China"]
[BlackTeam "England"]
[WhiteTeamCountry "CHN"]
[BlackTeamCountry "ENG"]
[TimeControl "40/5400+30:1800+30"]

1. e4 {[%emt 0:00:03]} c6 {[%emt 0:00:04]} 2. d4 {[%emt 0:00:03]} d5 {[%emt 0:00:04]} 3. Nc3 {[%emt 0:00:04]} g6 {[%emt 0:00:21]} 4. e5 {[%emt 0:00:05]} Bg7 {[%emt 0:02:44]} 5. Bf4 {[%emt 0:00:23]} f6 {[%emt 0:27:29]} 6. Qd2 {[%emt 0:00:09]} Bf5 {[%emt 0:05:23]} 7. Nf3 {[%emt 0:04:01]} Nd7 {[%emt 0:04:05]} 8. O-O-O {[%emt 0:02:56]} Qa5 {[%emt 0:10:05]} 9. Kb1 {[%emt 0:02:43]} O-O-O {[%emt 0:13:19]} 10. exf6 {[%emt 0:01:11]} Ndxf6 {[%emt 0:00:21]} 11. h3 {[%emt 0:27:35]} h5 {[%emt 0:10:32]} 12. Ne5 {[%emt 0:01:50]} Nh6 {[%emt 0:04:48]} 13. Bd3 {[%emt 0:04:01]} Ne8 {[%emt 0:12:16]} 14. Bxf5+ {[%emt 0:03:57]} Nxf5 {[%emt 0:00:47]} 15. Nxg6 {[%emt 0:00:35]} Rg8 {[%emt 0:00:49]} 16. g4 {[%emt 0:00:18]} Nxd4 {[%emt 0:04:10]} 17. Nxe7+ {[%emt 0:00:08]} Kd7 {[%emt 0:00:11]} 18. Nxg8 {[%emt 0:00:05]} Qb4 {[%emt 0:01:25]} 19. Ne4 {[%emt 0:02:08]} Qf8 {[%emt 0:00:21]} 20. Ngf6+ {[%emt 0:00:22]} Nxf6 {[%emt 0:00:09]} 21. Qxd4 {[%emt 0:00:01]} Kc8 {[%emt 0:01:04]} 22. Qe5 {[%emt 0:00:39]} 1-0

[Event "45th FIDE Womens Olympiad 2024"]
[Site "Budapest"]
[Date "2024.09.14"]
[Round "4.10"]
[White "Nkwanyane Nolwazi"]
[Black "Ndirangu, Joyce Nyaruai"]
[Result "0-1"]
[ECO "B27"]
[WhiteElo "1542"]
[BlackElo "1782"]
[PlyCount "102"]
[EventDate "2024.09.05"]
[EventType "team-tourn"]
[EventCountry "HUN"]
[WhiteTeam "Eswatini"]
[BlackTeam "Kenya"]
[BlackTeamCountry "KEN"]
[TimeControl "40/5400+30:1800+30"]

1. e4 c5 2. Nf3 g6 3. c3 d5 4. Bb5+ Bd7 5. Qa4 dxe4 6. Bxd7+ Qxd7 7. Qxe4 Nf6 8. Qe2 Nc6 9. O-O Bg7 10. Rd1 O-O 11. d4 Rad8 12. d5 Nxd5 13. Bd2 Nf4 14. Qf1 Qg4 15. Bxf4 Rxd1 16. Qxd1 Qxf4 17. Nbd2 Rd8 18. Qe2 Bh6 19. Ne4 b6 20. Ng3 e5 21. Re1 f6 22. Qe4 Qxe4 23. Nxe4 f5 24. Neg5 e4 25. Ne6 Rd7 26. Nfg5 Rd2 27. Rb1 Ne5 28. Nh3 Nd3 29. g3 Nxb2 30. a4 Rd1+ 31. Rxd1 Nxd1 32. a5 Nxc3 33. axb6 axb6 34. Kf1 Bd2 35. Ng1 c4 36. Ne2 Nd5 37. N2d4 Nc3 38. Nc7 Kf7 39. Ndb5 Nxb5 40. Nxb5 Ke6 41. Ke2 c3 42. Kd1 Kd5 43. Na3 Kd4 44. Kc2 Be1 45. Nb5+ Kc4 46. Na3+ Kb4 47. Nb1 b5 48. h3 h6 49. g4 fxg4 50. hxg4 h5 51. gxh5 gxh5 {0-} 0-1

[Event "45th FIDE Womens Olympiad 2024"]
[Site "Budapest"]
[Date "2024.09.14"]
[Round "4.11"]
[White "Hunt, Harriet V"]
[Black "Ni, Shiqun"]
[Result "0-1"]
[ECO "C43"]
[WhiteElo "2304"]
[BlackElo "2348"]
[Annotator "ChessBase"]
[PlyCount "54"]
[EventDate "2024.09.05"]
[EventType "team-tourn"]
[EventCountry "HUN"]
[SourceTitle "playchess.com"]
[Source "ChessBase"]
[SourceQuality "1"]
[WhiteTeam "England"]
[BlackTeam "China"]
[WhiteTeamCountry "ENG"]
[BlackTeamCountry "CHN"]
[TimeControl "40/5400+30:1800+30"]

1. e4 {[%emt 0:00:02]} e5 {[%emt 0:00:10]} 2. Nf3 {[%emt 0:00:12]} Nf6 {[%emt 0:00:06]} 3. d4 {[%emt 0:00:48]} Nxe4 {[%emt 0:00:05]} 4. Bd3 {[%emt 0:00:06]} d5 {[%emt 0:00:07]} 5. dxe5 {[%emt 0:00:26]} Nc5 {[%emt 0:07:29]} 6. Be2 {[%emt 0:00:34]} Be7 {[%emt 0:00:13]} 7. O-O {[%emt 0:00:24]} Ne6 {[%emt 0:07:44]} 8. Be3 {[%emt 0:08:53]} c5 {[%emt 0:08:25]} 9. c3 {[%emt 0:06:45]} O-O {[%emt 0:00:48]} 10. Qb3 {[%emt 0:08:45]} b6 {[%emt 0:12:35]} 11. a4 {[%emt 0:11:07]} a6 {[%emt 0:03:15]} 12. Rd1 {[%emt 0:04:17]} Bb7 {[%emt 0:00:11]} 13. Ne1 {[%emt 0:12:30]} Qc7 {[%emt 0:19:02]} 14. Na3 {[%emt 0:09:49]} Nd7 {[%emt 0:01:02]} 15. f4 {[%emt 0:00:48]} c4 {[%emt 0:00:46]} 16. Qc2 {[%emt 0:03:30]} Bc5 {[%emt 0:00:19]} 17. Rd4 {[%emt 0:01:21]} f6 {[%emt 0:06:03]} 18. Bg4 {[%emt 0:03:29]} Rae8 {[%emt 0:01:06]} 19. Bxe6+ {[%emt 0:12:21]} Rxe6 {[%emt 0:00:02]} 20. Qf5 {[%emt 0:00:23]} Qc6 {[%emt 0:02:37]} 21. Qh3 {[%emt 0:01:38]} fxe5 {[%emt 0:00:11]} 22. fxe5 {[%emt 0:00:08]} Nxe5 {[%emt 0:05:22]} 23. Nec2 {[%emt 0:01:02]} Rg6 {[%emt 0:01:06]} 24. Kh1 {[%emt 0:02:00]} Bxd4 {[%emt 0:03:00]} 25. Nxd4 {[%emt 0:01:10]} Qf6 {[%emt 0:00:04]} 26. Kg1 {[%emt 0:02:52]} Bc8 {[%emt 0:00:14]} 27. Qh5 {[%emt 0:00:18]} Bg4 {[%emt 0:00:08]} 0-1

[Event "45th FIDE Womens Olympiad 2024"]
[Site "Budapest"]
[Date "2024.09.14"]
[Round "4.11"]
[White "Mutisya, Jully"]
[Black "Dlamini Sincobile"]
[Result "1-0"]
[ECO "D00"]
[WhiteElo "1750"]
[BlackElo "1572"]
[PlyCount "47"]
[EventDate "2024.09.05"]
[EventType "team-tourn"]
[EventCountry "HUN"]
[WhiteTeam "Kenya"]
[BlackTeam "Eswatini"]
[WhiteTeamCountry "KEN"]
[TimeControl "40/5400+30:1800+30"]

1. d4 Nf6 2. Bf4 e6 3. e3 d5 4. Nd2 Bd6 5. Bg3 b6 6. c3 O-O 7. Bd3 c5 8. Ngf3 Qc7 9. Ne5 Nbd7 10. f4 Bb7 11. Qf3 Rac8 12. Bh4 cxd4 13. exd4 Rfe8 14. O-O g6 15. Rae1 Rf8 16. Qh3 Nh5 17. Re3 Nxe5 18. fxe5 Be7 19. Bf6 Bxf6 20. exf6 Kh8 21. g4 Nf4 22. Qh6 Rg8 23. Rxf4 e5 24. Rh3 1-0

[Event "45th FIDE Womens Olympiad 2024"]
[Site "Budapest"]
[Date "2024.09.14"]
[Round "4.12"]
[White "Lu, Miaoyi"]
[Black "Toma, Katarzyna"]
[Result "1-0"]
[ECO "E44"]
[WhiteElo "2438"]
[BlackElo "2184"]
[Annotator "ChessBase"]
[PlyCount "79"]
[EventDate "2024.09.05"]
[EventType "team-tourn"]
[EventCountry "HUN"]
[SourceTitle "playchess.com"]
[Source "ChessBase"]
[SourceQuality "1"]
[WhiteTeam "China"]
[BlackTeam "England"]
[WhiteTeamCountry "CHN"]
[BlackTeamCountry "ENG"]
[TimeControl "40/5400+30:1800+30"]

1. d4 {[%emt 0:00:01]} Nf6 {[%emt 0:00:07]} 2. c4 {[%emt 0:00:03]} e6 {[%emt 0:00:24]} 3. Nc3 {[%emt 0:00:02]} Bb4 {[%emt 0:00:10]} 4. e3 {[%emt 0:00:04]} O-O {[%emt 0:00:34]} 5. Nge2 {[%emt 0:00:02]} Ne4 {[%emt 0:10:25]} 6. Qc2 {[%emt 0:00:30]} f5 {[%emt 0:01:03]} 7. a3 {[%emt 0:03:46]} Bxc3+ {[%emt 0:05:48]} 8. Nxc3 {[%emt 0:00:02]} Nxc3 {[%emt 0:00:22]} 9. Qxc3 {[%emt 0:00:15]} b6 {[%emt 0:00:22]} 10. Bd3 {[%emt 0:07:29]} Bb7 {[%emt 0:00:39]} 11. O-O {[%emt 0:01:08]} d6 {[%emt 0:05:35]} 12. b4 {[%emt 0:09:16]} Nd7 {[%emt 0:00:38]} 13. f3 {[%emt 0:08:06]} Qe7 {[%emt 0:05:49]} 14. Bb2 {[%emt 0:06:05]} e5 {[%emt 0:17:36]} 15. d5 {[%emt 0:06:24]} a5 {[%emt 0:19:08]} 16. Qc2 {[%emt 0:11:56]} Qf7 {[%emt 0:03:48]} 17. g4 {[%emt 0:05:50]} axb4 {[%emt 0:11:32]} 18. axb4 {[%emt 0:09:08]} Rxa1 {[%emt 0:00:15]} 19. Bxa1 {[%emt 0:00:22]} g6 {[%emt 0:08:01]} 20. f4 {[%emt 0:06:47]} fxg4 {[%emt 0:06:17]} 21. fxe5 {[%emt 0:02:34]} Qg7 {[%emt 0:00:15]} 22. e6 {[%emt 0:00:31]} Rxf1+ {[%emt 0:00:05]} 23. Bxf1 {[%emt 0:00:03]} Ne5 {[%emt 0:00:33]} 24. Qe4 {[%emt 0:07:46]} Qf6 {[%emt 0:01:32]} 25. Bxe5 {[%emt 0:06:59]} Qxe5 {[%emt 0:00:05]} 26. Qxe5 {[%emt 0:00:04]} dxe5 {[%emt 0:00:04]} 27. Bg2 {[%emt 0:03:27]} Bc8 {[%emt 0:01:32]} 28. Kf2 {[%emt 0:00:35]} Kg7 {[%emt 0:00:39]} 29. Kg3 {[%emt 0:00:33]} h5 {[%emt 0:00:18]} 30. Kh4 {[%emt 0:00:08]} Kf6 {[%emt 0:00:13]} 31. Be4 {[%emt 0:00:23]} c6 {[%emt 0:01:37]} 32. dxc6 {[%emt 0:03:06]} Bxe6 {[%emt 0:00:10]} 33. c7 {[%emt 0:00:41]} Bc8 {[%emt 0:00:15]} 34. b5 {[%emt 0:00:04]} Ke7 {[%emt 0:00:24]} 35. c5 {[%emt 0:00:01]} bxc5 {[%emt 0:00:20]} 36. b6 {[%emt 0:00:01]} Kd6 {[%emt 0:00:38]} 37. b7 {[%emt 0:00:35]} Bxb7 {[%emt 0:00:05]} 38. Bxb7 {[%emt 0:00:02]} Kxc7 {[%emt 0:00:14]} 39. Be4 {[%emt 0:00:13]} Kd6 {[%emt 0:00:19]} 40. Bxg6 {[%emt 0:00:03]} 1-0

[Event "45th FIDE Womens Olympiad 2024"]
[Site "Budapest"]
[Date "2024.09.14"]
[Round "4.12"]
[White "Nosimilo, Mkhonto"]
[Black "Karanja, Ether"]
[Result "0-1"]
[ECO "C01"]
[WhiteElo "1561"]
[BlackElo "1637"]
[PlyCount "130"]
[EventDate "2024.09.05"]
[EventType "team-tourn"]
[EventCountry "HUN"]
[WhiteTeam "Eswatini"]
[BlackTeam "Kenya"]
[BlackTeamCountry "KEN"]
[TimeControl "40/5400+30:1800+30"]

1. e4 e6 2. Nf3 d5 3. exd5 exd5 4. d4 Nf6 5. Bd3 Be7 6. c3 Nbd7 7. Nbd2 b6 8. Nf1 Bb7 9. Ng3 c5 10. O-O O-O 11. Nf5 Ne4 12. Nxe7+ Qxe7 13. Re1 Qd6 14. Ng5 Ndf6 15. f3 Nxg5 16. Bxg5 cxd4 17. cxd4 Rfe8 18. Qd2 h6 19. Bf4 Qd7 20. Be5 Nh7 21. Qc2 Ng5 22. Bf5 Ne6 23. Qf2 Qe7 24. Bxe6 fxe6 25. Qg3 Rac8 26. Rac1 Ba6 27. Bf4 Qf6 28. Be5 Qf7 29. a3 Bd3 30. Rc3 Rxc3 31. bxc3 Rc8 32. Rc1 Qg6 33. Qxg6 Bxg6 34. Kf2 Kf7 35. Ke3 Rc4 36. Kd2 a6 37. Ra1 b5 38. Bc7 Rxc7 39. h4 h5 40. g4 Kf6 41. Re1 hxg4 42. fxg4 Be4 43. Rf1+ Ke7 44. g5 Rc8 45. h5 Rf8 46. Rxf8 Kxf8 47. Ke3 Kf7 48. Kf4 Bf5 49. Ke5 Ke7 50. Kf4 Bc2 51. h6 gxh6 52. gxh6 Kf6 53. Kg4 Kg6 54. Kf4 Kxh6 55. Ke5 Bf5 56. Kd6 Kg5 57. Kc5 Kf4 58. Kb4 Ke3 59. Ka5 Kd3 60. Kxa6 Kxc3 61. Kxb5 Kxd4 62. a4 Bd3+ 63. Kb4 e5 64. a5 e4 65. a6 Bxa6 {0-} 0-1